Cogmind - Beta 14 @@@ ROGUE MODE // 2024.08.28 @ 11:01:46 Player: Turbo Result: Destroyed by Y-54 Guardian with Gatling Laser Performance ------------- Evolutions (3) 1500 Regions Visited (4) 800 Robots Destroyed (70) 350 Value Destroyed (1778) 1778 Prototype IDs (0) 0 Alien Tech Used (0) 0 Bonus (35) 35 TOTAL SCORE: 4463 Bonus ------- High Alert Combat Kills 35 Cogmind --------- Core Integrity 0/700 Matter 73/300 Energy 99/100 System Corruption 6% Temperature Cool (12) Movement Core (50) Location -7/Factory Parts ------- > --- POWER (2) -------- (None) > --- PROPULSION (3) --- (None) > --- UTILITY (4) ------ Improved Signal Interpreter Terrain Scan Processor Improved Targeting Computer > --- WEAPON (4) ------- (None) > --- INVENTORY (5) ---- Terrain Scanner Core Shielding Peak State ------------ > --- POWER ------------ Light Nuclear Core Improved Deuterium Engine > --- PROPULSION ------- Armored Wheel Armored Huge Wheel > --- UTILITY ---------- Small Storage Unit Improved Signal Interpreter Terrain Scan Processor Improved Targeting Computer > --- WEAPON ----------- Improved EM Pulse Cannon High-powered Shotgun Improved Light Cannon Flak Cannon > --- INVENTORY -------- Light Nuclear Core Terrain Scanner Core Shielding Flak Cannon Rocket Launcher Rocket Launcher [Rating: 38] Favorites ----------- Power Light Ion Engine Engine Light Ion Engine Power Core Light Nuclear Core Propulsion Wheel Treads Light Treads Wheel Wheel Utility Small Storage Unit Device Improved Terrain Scanner Storage Small Storage Unit Processor Terrain Scan Processor Protection Core Shielding Weapon Flak Cannon Energy Cannon Improved EM Pulse Cannon Ballistic Gun Light Assault Rifle Ballistic Cannon Flak Cannon Launcher Grenade Launcher Slashing Weapon Scythe Build | -11 -10 -9 -8 -7 ------- Run | Yrd Mat Mat Mat Fac Slots Evolved 6 | . . 2 2 2 Power 1 | . . . 1 . Propulsion 1 | . . . 1 . Utility 2 | . . 2 . . Weapon 2 | . . . . 2 Parts Attached 57 | 10 10 9 11 17 Power 9 | 1 1 1 2 4 Engine 5 | 1 1 1 1 1 Core 4 | . . . 1 3 Reactor . | . . . . . Propulsion 15 | 5 3 1 2 4 Treads 3 | 3 . . . . Leg . | . . . . . Wheel 12 | 2 3 1 2 4 Hover . | . . . . . Flight . | . . . . . Utility 15 | 2 4 5 3 1 Device 8 | 1 3 3 1 . Storage 2 | 1 . . 1 . Processor 4 | . . 2 1 1 Hackware . | . . . . . Protection 1 | . 1 . . . Artifact . | . . . . . Weapon 18 | 2 2 2 4 8 Energy Gun . | . . . . . Energy Cannon 1 | . . . . 1 Ballistic Gun 4 | 2 1 . 1 . Ballistic Cannon 7 | . . 2 2 3 Launcher 4 | . 1 . 1 2 Special Weapon . | . . . . . Impact Weapon . | . . . . . Slashing Weapon 2 | . . . . 2 Piercing Weapon . | . . . . . Special Melee Weapon . | . . . . . Unidentified Prototypes . | . . . . . Parts Lost 27 | . 5 1 4 17 Power 5 | . . . 1 4 Propulsion 7 | . 2 . 1 4 Utility 4 | . 1 1 . 2 Weapon 11 | . 2 . 2 7 Highest Loss Streak 8 | . 3 1 3 8 To Critical Strikes . | . . . . . Average Slot Usage (%) 91 | . 97 99 93 76 Engine 10 | . 14 11 12 4 Core 1 | . . . 1 4 Wheel 21 | . 27 22 24 11 Device 10 | . 13 17 9 . Storage 7 | . 12 . 8 6 Processor 12 | . . 14 18 21 Protection 3 | . 1 11 . . Ballistic Gun 9 | . 23 . 3 5 Ballistic Cannon 10 | . . 20 14 12 Launcher 1 | . 2 . . 1 Peak Build Rating 38 | 9 9 17 24 38 Average Rating 16 | 4 7 15 20 30 On Entrance 11 | . 9 7 16 24 Naked Turns . | . . . . . Heaviest Build 40 | 12 14 22 28 40 Greatest Support 40 | 40 32 26 32 40 Greatest Overweight (x) 5 | . . . 1 5 Average Overweight (x) . | . . . . . Largest Inventory Capacity 8 | 8 8 5 8 8 Average Capacity 7 | 6 7 5 7 7 Most Carried 8 | 4 6 5 8 8 Average Carried 4 | . 3 4 5 5 Final Capacity 8 | 8 5 5 8 5 Final Carried 6 | . 3 5 6 2 Class Distribution -------------------- 69% | Mutant 16% | Skirmisher 12% | Gunner Dominant Class ---------------- Mutant | -10/Materials Skirmisher | -9/Materials Mutant | -8/Materials Gunner | -7/Factory Resources | -11 -10 -9 -8 -7 ----------- Run | Yrd Mat Mat Mat Fac Matter Collected 1654 | 297 241 417 405 294 Remotely . | . . . . . Salvage Created 1918 | 100 488 395 319 616 Parts 128 | 7 34 36 27 24 Haulers Intercepted 2 | . . . 1 1 Recyclers Shooed 1 | . . . . 1 Parts Field Recycled . | . . . . . Retrieved Matter . | . . . . . Parts Self-Destructed . | . . . . . Prevented . | . . . . . Kills | -11 -10 -9 -8 -7 ------- Run | Yrd Mat Mat Mat Fac Combat Hostiles Destroyed 47 | . 8 15 13 11 Melee 1 | . . . . 1 Guns 9 | . 7 . 1 1 Cannons 31 | . . 15 11 5 AOE 5 | . 1 . 1 3 Classes Destroyed 11 | 2 5 2 2 . Worker 7 | . 5 . . 2 Builder 2 | . 1 . 1 . Tunneler 2 | 1 1 . . . Hauler 2 | . . . 1 1 Recycler 7 | 1 1 1 . 4 Operator 1 | . . 1 . . Watcher 2 | . 1 . . 1 Swarmer 16 | . 3 6 4 3 Grunt 23 | . 5 5 7 6 Sentry 5 | . . 4 1 . Hunter 3 | . . . 1 2 Best Kill Streak 12 | 2 7 6 6 12 Combat Bots Only 6 | . 3 6 6 6 Max Kills in Single Turn 3 | 1 1 2 1 3 Gunslinging . | . . . . . Exploded 1 | . 1 . 1 1 Melee 1 | . . . . 1 Uniques/NPCs Destroyed . | . . . . . Combat | -11 -10 -9 -8 -7 -------- Run | Yrd Mat Mat Mat Fac Hostile Shots Fired 409 | . 77 36 80 216 Missed 130 | . 24 11 22 73 Damage Taken 3745 | . 655 296 577 2217 Core 1090 | . 181 52 149 708 Absorbed by Shields . | . . . . . Redirected to Shielding 10 | . . 10 . . Core Remaining (%) 71 | 100 27 87 72 . Volleys Fired 161 | 4 60 26 43 28 Largest 4 | 2 2 2 2 4 Hottest 177 | 40 50 88 88 177 Shots Fired 296 | 8 94 52 84 58 Gun 122 | 8 91 . 6 17 Cannon 155 | . . 52 75 28 Launcher 19 | . 3 . 3 13 Special . | . . . . . Kinetic 273 | 8 91 52 81 41 Thermal . | . . . . . Explosive 19 | . 3 . 3 13 Electromagnetic 4 | . . . . 4 Robot Hit Streak 8 | 5 8 8 6 6 Robot Miss Streak 15 | 1 4 15 14 11 Penetration Max . | . . . . . Secondary Targets 1 | . 1 . . . Max Gunslinging Chain 1 | . 1 . . . Shots Hit Robots 193 | 6 64 36 53 34 Core Hits 196 | 3 35 49 62 47 Critical Kills . | . . . . . Critical Parts Destroyed . | . . . . . Critical Strikes . | . . . . . Melee Attacks 9 | . . . . 9 Impact . | . . . . . Slashing 9 | . . . . 9 Piercing . | . . . . . Sneak Attacks 1 | . . . . 1 Combat Hostiles . | . . . . . Follow-up Attacks . | . . . . . Damage Inflicted 4207 | 67 712 682 983 1763 Guns 827 | 67 608 . 61 91 Cannons 1702 | . . 682 764 256 Explosions 1352 | . 104 . 158 1090 Melee 228 | . . . . 228 Ramming 98 | . . . . 98 Kinetic 2501 | 67 608 682 825 319 Thermal 73 | . . . . 73 Explosive 1279 | . 104 . 158 1017 Electromagnetic 28 | . . . . 28 Impact . | . . . . . Slashing 228 | . . . . 228 Piercing . | . . . . . Highest Corruption 6 | . . 2 1 6 Average Corruption 4 | . . 2 1 5 Corruption Purged . | . . . . . Corruption Blocked . | . . . . . Effects 6 | . . . . 6 Message Errors 1 | . . . . 1 Heat Flow Errors 2 | . . . . 2 Energy Discharges 1 | . . . . 1 Parts Rejected 1 | . . . . 1 Misfires 1 | . . . . 1 Overload Shots . | . . . . . Overflow Damage 218 | . . . . 218 Projectiles 8 | . . . . 8 Explosions 168 | . . . . 168 Melee 42 | . . . . 42 Knockbacks 41 | . . 10 24 7 Impact . | . . . . . Kinetic 38 | . . 10 21 7 Secondary 3 | . . . 3 . Self-Inflicted Damage 366 | . 32 . . 334 Shots 9 | . 1 . . 8 Rammed 26 | . . . . 26 Targets Rammed 26 | . . . . 26 Kicked . | . . . . . Crushed . | . . . . . Highest Temperature 345 | . 33 60 345 240 Average Temperature 70 | . 11 23 102 92 Received Heat Transfer 1005 | . 321 105 144 435 Siege Activations . | . . . . . Robots Corrupted 1 | . . . . 1 Combat Hostiles 1 | . . . . 1 Parts Fried 1 | . . . . 1 Impact Corruptions 1 | . . . . 1 Robots Melted . | . . . . . Combat Hostiles . | . . . . . Parts Melted . | . . . . . Heat Transferred 50 | . . . . 50 Parts Sabotaged . | . . . . . Parts Stolen . | . . . . . Parts Stripped . | . . . . . Power Chain Reactions . | . . . . . Alert | -11 -10 -9 -8 -7 ------- Run | Yrd Mat Mat Mat Fac Peak Influence 485 | 10 157 368 485 453 Initial 220 | . 6 2 155 220 Average 168 | 2 71 160 323 235 Maximum Alert Level 2 | . . 1 2 2 Low Security (%) 60 | 100 100 57 19 28 Level 1 32 | . . 42 34 66 Level 2 7 | . . . 45 4 Level 3 . | . . . . . Level 4 . | . . . . . Level 5 . | . . . . . High Security . | . . . . . Max Security . | . . . . . Squads Dispatched 7 | . . 1 1 5 Investigation 2 | . . . . 2 Extermination . | . . . . . Reinforcement 4 | . . 1 1 2 Assault . | . . . . . Garrison 1 | . . . . 1 Intercept . | . . . . . Searches Triggered . | . . . . . Construction Impeded 1 | . . . . 1 Haulers Reinforced . | . . . . . Active Scanning Responses . | . . . . . Cargo Convoy Interrupts . | . . . . . Stealth | -11 -10 -9 -8 -7 --------- Run | Yrd Mat Mat Mat Fac Distress Signals 4 | . . 1 2 1 Communications Jammed . | . . . . . Distress Signals . | . . . . . Times Spotted 75 | . 18 19 17 21 Peak Tracking Total 7 | . 6 5 7 6 Tactical Retreats 8 | . 1 3 1 3 Traps | -11 -10 -9 -8 -7 ------- Run | Yrd Mat Mat Mat Fac Traps Triggered 4 | . . 1 1 2 Indirectly . | . . . . . Trap Hack Attempts . | . . . . . Triggered . | . . . . . Disarmed . | . . . . . Reprogrammed . | . . . . . Reused . | . . . . . Traps Extracted . | . . . . . Installed . | . . . . . Triggered . | . . . . . Machines | -11 -10 -9 -8 -7 ---------- Run | Yrd Mat Mat Mat Fac Machines Disabled 6 | . . . . 6 Max in Single Turn 6 | . . . . 6 Machines Repaired . | . . . . . Machines Dismantled . | . . . . . Machines Sabotaged . | . . . . . Overloaded Fab Kills . | . . . . . Hacking | -11 -10 -9 -8 -7 --------- Run | Yrd Mat Mat Mat Fac Machines Accessed 3 | . 1 2 . . Terminals 2 | . 1 1 . . Fabricators . | . . . . . Repair Stations . | . . . . . Recycling Units . | . . . . . Scanalyzers 1 | . . 1 . . Garrison Access . | . . . . . Total Hacks 9 | . 2 7 . . Successful 3 | . . 3 . . Failed 6 | . 2 4 . . Catastrophic . | . . . . . Database Lockouts . | . . . . . Manual 4 | . . 4 . . Terminals 6 | . 2 4 . . Fabricators . | . . . . . Repair Stations . | . . . . . Recycling Units . | . . . . . Scanalyzers 3 | . . 3 . . Garrison Access . | . . . . . Terminal Hacks 1 | . . 1 . . Zone Layout 1 | . . 1 . . Fabricator Hacks . | . . . . . Repair Station Hacks . | . . . . . Recycling Unit Hacks . | . . . . . Scanalyzer 2 | . . 2 . . Insert Component 1 | . . 1 . . Analyze 1 | . . 1 . . Garrison Access Hacks . | . . . . . Unauthorized Hacks . | . . . . . Terminals . | . . . . . Fabricators . | . . . . . Repair Stations . | . . . . . Recycling Units . | . . . . . Scanalyzers . | . . . . . Garrison Access . | . . . . . Data Cores Recovered . | . . . . . Used . | . . . . . Hacking Detections 2 | . . 2 . . Full Trace Events 1 | . . 1 . . Feedback Events . | . . . . . Feedback Blocked . | . . . . . Robot Schematics Acquired . | . . . . . Robots Built . | . . . . . Authchips . | . . . . . Time . | . . . . . Total Robot Build Rating . | . . . . . Part Schematics Acquired 1 | . . 1 . . Parts Built . | . . . . . Authchips . | . . . . . Time . | . . . . . Total Part Build Rating . | . . . . . Parts Repaired . | . . . . . Time . | . . . . . Parts Recycled . | . . . . . Recycled Matter . | . . . . . Retrieved Matter . | . . . . . Retrieved Components . | . . . . . Parts Scanalyzed 1 | . . 1 . . Part Schematics Acquired 1 | . . 1 . . Parts Damaged . | . . . . . Bothacking | -11 -10 -9 -8 -7 ------------ Run | Yrd Mat Mat Mat Fac Used RIF Installer . | . . . . . Robots Hacked . | . . . . . Non-combat . | . . . . . Combat . | . . . . . Robot Hacks Applied . | . . . . . Relay Couplers Released . | . . . . . Fabnet Peak Effective % . | . . . . . Robots Rewired . | . . . . . Allies Hacked . | . . . . . Hacks Repelled . | . . . . . Allies | -11 -10 -9 -8 -7 -------- Run | Yrd Mat Mat Mat Fac Total Allies . | . . . . . Largest Group . | . . . . . Highest-Rated Group . | . . . . . Highest-Rated Ally . | . . . . . Total Orders . | . . . . . Ally Attacks . | . . . . . Total Damage . | . . . . . Kills . | . . . . . Allies Corrupted . | . . . . . Allies Melted . | . . . . . Intel | -11 -10 -9 -8 -7 ------- Run | Yrd Mat Mat Mat Fac Robot Analysis Total . | . . . . . Derelict Logs Recovered . | . . . . . Drone Launches . | . . . . . Drone Recoveries . | . . . . . Exploration | -11 -10 -9 -8 -7 ------------- Run | Yrd Mat Mat Mat Fac Turns Passed 2666 | 121 831 654 387 673 Spaces Moved 1843 | 86 479 536 235 507 Core 30 | 4 . . . 26 Treads 6 | 6 . . . . Legs . | . . . . . Wheels 1807 | 76 479 536 235 481 Hover . | . . . . . Flight . | . . . . . Fastest Speed 50 | 50 90 85 83 50 Average Speed 92 | 101 93 85 86 100 Slowest Speed 300 | 160 100 90 100 300 Overloaded Moves . | . . . . . Propulsion Burnouts . | . . . . . Robots Hopped . | . . . . . Cave-ins Triggered . | . . . . . Exploration Rate (%) 26 | 6 57 31 22 15 Regions Visited 4 Branch Regions . Pre-discovered Areas . | . . . . . Known Exits Taken 1 | . . 1 . . Unknown Exits Taken 3 | 1 1 . 1 . Scrap Searched . | . . . . . Spaces Dug . | . . . . . Terrain Destroyed 151 | . 23 . 23 105 Melee . | . . . . . Projectile . | . . . . . AOE 151 | . 23 . 23 105 Terrain Rammed . | . . . . . Walls Destroyed . | . . . . . Machines Disabled . | . . . . . Actions | -11 -10 -9 -8 -7 --------- Run | Yrd Mat Mat Mat Fac Total 2523 | 114 782 681 334 612 Wait 347 | 1 216 90 35 5 Move 1839 | 85 478 535 234 507 Hop . | . . . . . Pick Up 53 | 9 12 12 9 11 Fast Attach . | . . . . . Attach 43 | 10 7 5 7 14 Detach 12 | 3 2 2 1 4 Swap 14 | . 3 4 4 3 Drop 19 | 2 4 7 1 5 Fire 161 | 4 60 26 43 28 Melee 9 | . . . . 9 Ram 26 | . . . . 26 Kick . | . . . . . Crush . | . . . . . Escape Stasis . | . . . . . Rewire . | . . . . . Trap . | . . . . . Miscellaneous . | . . . . . Route ------- -11/Scrapyard -10/Materials (discovered 2 exits: *Mat / [*Min]) -9/Materials -8/Materials -7/Factory History --------- Turn | Location | Event 48 | -11/Scrapyard | Discovered new exit (range 15) 122 | -11/Scrapyard | Entered Materials 298 | -10/Materials | Discovered new exit (range 13) 328 | -10/Materials | Build established: Mutant 704 | -10/Materials | Core integrity fell below 50% 756 | -10/Materials | Lost 3 parts (1n2w) 930 | -10/Materials | Discovered new exit (range 14) 953 | -10/Materials | Entered another Materials area 953 | -9/Materials | Evolved 2 slots: Utility x2 1283 | -9/Materials | Build established: Skirmisher 1594 | -9/Materials | Discovered new exit (range 11) 1606 | -9/Materials | Identified exit to Materials 1607 | -9/Materials | Entered another Materials area 1607 | -8/Materials | Evolved 2 slots: Power x1, Propulsion x1 1678 | -8/Materials | Build established: Mutant 1835 | -8/Materials | Lost 3 parts (1p2w) 1976 | -8/Materials | Discovered new exit (range 10) 1994 | -8/Materials | Entered Factory 1994 | -7/Factory | Evolved 2 slots: Weapon x2 2344 | -7/Factory | Build established: Gunner 2544 | -7/Factory | Lost 3 parts (1p2w) 2603 | -7/Factory | Core integrity fell below 50% 2628 | -7/Factory | Garrison activated, responded to threat 2659 | -7/Factory | Core integrity fell below 20% 2667 | -7/Factory | Destroyed by Y-54 Guardian with Gatling Laser Last Messages --------------- 02645_ K-01 Serf collects debris. 02647_ U-05 Engineer lays Concrete. 02647_ Com. Wheel destroyed. 02648_ U-05 Engineer lays Concrete. 02651_ System corrupted: Energy discharge (-25). 02651_ The unstable cave ceiling collapses. 02651_ K-01 Serf collects debris. 02651_ U-05 Engineer lays Concrete. 02653_ Acquired 17 matter. 02653_ U-05 Engineer lays Concrete. 02654_ Acquired 30 matter. 02655_ Sml. Storage Unit destroyed. 02655_ K-01 Serf collects debris. 02655_ U-05 Engineer lays Concrete. 02659_ K-01 Serf collects debris. 02659_ U-05 Engineer lays Concrete. 02664_ Scythe destroyed. 02665_ U-05 Engineer lays Concrete. 02665_ Slammed into Y-54 Guardian. 02667_ U-05 Engineer builds a Wall. Map ----- +----------------------------------------------------+ | ?????????????????????????????????????????????????? | | ?????????????????????????????????????????????????? | | ?????????????????????????????????????????????????? | | ?????????????????????????????????????????????????? | | ?????????????????????????????????????????????????? | | ?????????????????????????????????????????????????? | | ?????????????????????????????????????????????????? | | ?????????????????????????????????????????????????? | | ????????????????????????????????????? ????????? | | ????????????????????????????????????? =????????? | | ???????????????????????????????? ???? ! ???????? | | ????????????????????????????????" ??# ???"" ?? | | ???????????????????????????????"" ?? ?? ? | | ????????????????????????????????" ? """ ? | | ????????????????????????????????" ? """ *] ? | | ????????????????????????????????? """ *!?? | | ?????????????????????????????????? # *??? | | ?????????????????????????????????? # ???? | | ??????????????????????????????????? ?????? | | ???????????????????????############# ##?????? | | ???????????????????????# ! #?????? | | ???????????????????????# # ##?????? | | ??????????????????????## = ###????? | | ??????????????????????# * % #????? | | ??????????????????????## #????? | | ??????????????????????#Y @ ##????? | | ??????????????????????# #????? | | ?????????????????????# # ###????? | | ????????????????????;; u #??????? | | ?????????????????? g %* #??????? | | ????????????????? % Y= #??????? | | ??????????????? g #??????? | | ?????????????? # u #??????? | | ?????????????########;;; # %##?????? | | ???????????????????? ; # ######## | | ???????????????????"""u## ; # | | ####???????????????""" ?#### """"" + % | | #????????????????" ????# # | | #????????????????" ????# # | | #???????????????? ?????# "" "" # | | #??????????????????????# ""S"" ##### ######## | | """ #??????????????????#???# """" #???# #??????? | | """ #????????????????? #???###########??# #??????? | | """ #????????????????? #?????## # #??# #??????? | | #???????????????? #?????# #### #??????? | | +######+#############+######## # # #??????? | | #??????? | | #??????? | | #??????? | | ####??????? | +----------------------------------------------------+ Best States ------------- Heat Dissipation 34 Energy Generation 25 Energy Capacity 350 Matter Stores 300 Matter Capacity 300 Sight Range 16 Robot Scan Range 14 Terrain Scan Range 16 Terrain Scan Density 85 ECM Strength 1 Core Shielding 20 Evasion (%) 50 Targeting Accuracy 6 Recoil Reduction 2 Item Schematics ----------------- Flak Cannon | -9/Materials | Scanalyzed Robot Schematics ------------------ None Fabricated ------------ Nothing Alien Tech Used ----------------- None Achievements -------------- Let's See Who's Tougher Challenges ------------ None Game ------ Seed MyomerGreatActivator Manual? 0 Play Time 00:28:03 Cumulative 9.0 hours Start 2024.08.28 @ 10:34:25 End 2024.08.28 @ 11:01:46 Sessions 1 Manual Loads 0 Difficulty Rogue Special Mode None Game No. 12 Rogue 12 Adventurer 0 Explorer 0 Win Type - Total 0 Types 0/0/0/0/0/0/0/0/0 Lore% 9 Gallery% 16 Achievement% 13 Wizard Run 0 Options --------- Layout 1 ASCII 0 Keyboard 1 Movement Numpad Keybinds 0 Fullscreen 1 Font 24/Smallcaps Map View 50x35 Zoom Use 0% Tactical HUD 1 Map Filters NONE Filters NONE Steam 1 RUN: b5c53400-b8d7-4024-8a51-50303af51e5c